fUSD/lending_fUSD_20240514
["ID","MTS","AMOUNT","RATE_DAILY","PERIOD"]
[327018177,1715716260641,-500.0,0.00012999,2]
[327018178,1715716260651,-500.0,0.00012999,2]
[327018179,1715716260661,-303.16676739,0.00012999,2]
[327018180,1715716260674,-500.0,0.00012999,2]
[327018181,1715716260684,-500.0,0.00012999,2]
[327018182,1715716260695,-547.27,0.00012999,2]
[327018183,1715716260706,-547.27,0.00012999,2]
[327018184,1715716260717,-547.27,0.00012999,2]
[327018185,1715716260726,-547.27,0.00012999,2]
[327018186,1715716260736,-547.27,0.00012999,2]
[327018187,1715716260745,-547.27,0.00012999,2]
[327018188,1715716260755,-547.27,0.00012999,2]
[327018189,1715716260764,-547.27,0.00012999,2]
[327018190,1715716260773,-500.0,0.00012999,2]
[327018191,1715716260782,-645.49896188,0.00012999,2]
[327018192,1715716260791,-547.27,0.00012999,2]
[327018193,1715716260800,-500.0,0.00012999,2]
[327018194,1715716260809,-500.0,0.00012999,2]
[327018195,1715716260820,-547.27,0.00012999,2]
[327018196,1715716260830,-500.0,0.00012999,2]
[327018197,1715716260840,-547.27,0.00012999,2]
[327018198,1715716260849,-500.0,0.00012999,2]
[327018199,1715716260860,-547.27,0.00012999,2]
[327018200,1715716260870,-500.0,0.00012999,2]
[327018201,1715716260882,-547.27,0.00012999,2]
[327018202,1715716260892,-500.0,0.00012999,2]
[327018203,1715716260903,-547.27,0.00012999,2]
[327018204,1715716260913,-500.0,0.00012999,2]
[327018205,1715716260922,-547.27,0.00012999,2]
[327018206,1715716260932,-302.46104911,0.00012999,2]
[327018207,1715716260941,-547.27,0.00012999,2]
[327018208,1715716260950,-547.27,0.00012999,2]
[327018209,1715716260959,-547.27,0.00012999,2]
[327018210,1715716260969,-547.27,0.00012999,2]
[327018211,1715716260978,-547.27,0.00012999,2]
[327018212,1715716260990,-547.27,0.00012999,2]
[327018213,1715716261000,-547.3806663,0.00012999,2]
[327018214,1715716261009,-500.0,0.00012999,2]
[327018215,1715716261019,-500.0,0.00012999,2]
[327018216,1715716261028,-500.0,0.00012999,2]
[327018217,1715716261038,-500.0,0.00012999,2]
[327018218,1715716261047,-500.0,0.00012999,2]
[327018219,1715716261056,-500.0,0.00012999,2]
[327018220,1715716261066,-500.0,0.00012999,2]
[327018221,1715716261077,-500.0,0.00012999,2]
[327018222,1715716261087,-230.17628899,0.00012999,2]
[327018223,1715716261096,-668.25,0.00012999,2]
[327018224,1715716261105,-668.25,0.00012999,2]
[327018225,1715716261114,-500.0,0.00012999,2]
[327018226,1715716261123,-668.25,0.00012999,2]
[327018227,1715716261132,-500.0,0.00012999,2]
[327018228,1715716261141,-668.25,0.00012999,2]
[327018229,1715716261150,-668.25,0.00012999,2]
[327018230,1715716261159,-500.0,0.00012999,2]
[327018231,1715716261169,-668.25,0.00012999,2]
[327018232,1715716261178,-500.0,0.00012999,2]
[327018233,1715716261187,-668.25,0.00012999,2]
[327018234,1715716261196,-500.0,0.00012999,2]
[327018235,1715716261205,-668.25,0.00012999,2]
[327018236,1715716261214,-668.25,0.00012999,2]
[327018237,1715716261223,-500.0,0.00012999,2]
[327018238,1715716261232,-668.25,0.00012999,2]
[327018239,1715716261241,-500.0,0.00012999,2]
[327018240,1715716261250,-500.0,0.00012999,2]
[327018241,1715716261259,-668.25,0.00012999,2]
[327018242,1715716261268,-500.0,0.00012999,2]
[327018243,1715716261277,-668.25,0.00012999,2]
[327018244,1715716261286,-500.0,0.00012999,2]
[327018245,1715716261296,-668.25,0.00012999,2]
[327018246,1715716261305,-500.0,0.00012999,2]
[327018247,1715716261314,-500.0,0.00012999,2]
[327018248,1715716261324,-668.25,0.00012999,2]
[327018249,1715716261334,-500.0,0.00012999,2]
[327018250,1715716261342,-500.0,0.00012999,2]
[327018251,1715716261352,-668.25,0.00012999,2]
[327018252,1715716261361,-500.0,0.00012999,2]
[327018253,1715716261370,-504.86,0.00012999,2]
[327018254,1715716261380,-965.09,0.00012999,2]
[327018255,1715716261389,-500.0,0.00012999,2]
[327018256,1715716261398,-668.2762952,0.00012999,2]
[327018257,1715716261408,-965.09,0.00012999,2]
[327018258,1715716261418,-500.0,0.00012999,2]
[327018259,1715716261427,-500.0,0.00012999,2]
[327018260,1715716261436,-965.09,0.00012999,2]
[327018261,1715716261445,-500.0,0.00012999,2]
[327018262,1715716261454,-965.09,0.00012999,2]
[327018263,1715716261464,-965.09,0.00012999,2]
[327018264,1715716261473,-500.0,0.00012999,2]
[327018265,1715716261483,-965.09,0.00012999,2]
[327018266,1715716261492,-500.0,0.00012999,2]
[327018267,1715716261501,-500.0,0.00012999,2]
[327018268,1715716261510,-965.09,0.00012999,2]
[327018269,1715716261519,-500.0,0.00012999,2]
[327018270,1715716261528,-500.0,0.00012999,2]
[327018271,1715716261537,-965.09,0.00012999,2]
[327018272,1715716261546,-500.0,0.00012999,2]
[327018273,1715716261556,-965.09,0.00012999,2]
[327018274,1715716261566,-500.0,0.00012999,2]
[327018275,1715716261576,-500.0,0.00012999,2]
[327018276,1715716261585,-965.09,0.00012999,2]
[327018277,1715716261595,-500.0,0.00012999,2]
[327018278,1715716261604,-965.09,0.00012999,2]
[327018279,1715716261613,-538.74007441,0.00012999,2]
[327018280,1715716261622,-500.0,0.00012999,2]
[327018281,1715716261631,-965.09,0.00012999,2]
[327018282,1715716261640,-500.0,0.00012999,2]
[327018283,1715716261649,-965.09,0.00012999,2]
[327018284,1715716261659,-500.0,0.00012999,2]
[327018285,1715716261669,-965.09,0.00012999,2]
[327018286,1715716261678,-965.09,0.00012999,2]
[327018287,1715716261687,-500.0,0.00012999,2]
[327018288,1715716261696,-500.0,0.00012999,2]
[327018289,1715716261705,-965.09,0.00012999,2]
[327018290,1715716261714,-500.0,0.00012999,2]
[327018291,1715716261723,-965.09,0.00012999,2]
[327018292,1715716261732,-500.0,0.00012999,2]
[327018293,1715716261741,-500.0,0.00012999,2]
[327018294,1715716261750,-965.09,0.00012999,2]
[327018295,1715716261759,-500.0,0.00012999,2]
[327018296,1715716261768,-965.14295598,0.00012999,2]
[327018297,1715716261777,-500.0,0.00012999,2]
[327018298,1715716261786,-500.0,0.00012999,2]
[327018299,1715716261795,-500.0,0.00012999,2]
[327018300,1715716261804,-500.0,0.00012999,2]
[327018301,1715716261813,-575.19893906,0.00012999,2]
[327018302,1715716261822,-500.0,0.00012999,2]
[327018303,1715716261832,-500.0,0.00012999,2]
[327018304,1715716261841,-500.0,0.00012999,2]
[327018305,1715716261851,-500.0,0.00012999,2]
[327018306,1715716261860,-500.0,0.00012999,2]
[327018307,1715716261868,-500.0,0.00012999,2]
[327018308,1715716261877,-296.35559614,0.00012999,2]
[327018309,1715716261886,-500.0,0.00012999,2]
[327018310,1715716261895,-500.0,0.00012999,2]
[327018311,1715716261904,-158.29551984,0.00012999,2]
[327018312,1715716261916,-152.748138,0.00012999,2]
[327018313,1715716261925,-500.0,0.00012999,2]
[327018314,1715716261934,-500.0,0.00012999,2]
[327018315,1715716261944,-500.0,0.00012999,2]
[327018316,1715716261953,-500.0,0.00012999,2]
[327018317,1715716261963,-500.0,0.00012999,2]
[327018318,1715716261972,-500.0,0.00012999,2]
[327018319,1715716261980,-500.0,0.00012999,2]
[327018320,1715716261991,-500.0,0.00012999,2]
[327018321,1715716262004,-500.0,0.00012999,2]
[327018322,1715716262014,-814.39,0.00012999,2]
[327018323,1715716262024,-500.0,0.00012999,2]
[327018324,1715716262035,-814.39,0.00012999,2]
[327018325,1715716262047,-814.39,0.00012999,2]
[327018326,1715716262057,-500.0,0.00012999,2]
[327018327,1715716262067,-814.39,0.00012999,2]
[327018328,1715716262079,-500.0,0.00012999,2]
[327018329,1715716262089,-500.0,0.00012999,2]
[327018330,1715716262098,-814.39,0.00012999,2]
[327018331,1715716262107,-500.0,0.00012999,2]
[327018332,1715716262119,-814.39,0.00012999,2]
[327018333,1715716262129,-500.0,0.00012999,2]
[327018334,1715716262140,-814.39,0.00012999,2]
[327018335,1715716262151,-363.10572251,0.00012999,2]
[327018336,1715716262161,-814.39,0.00012999,2]
[327018337,1715716262172,-814.39,0.00012999,2]
[327018338,1715716262182,-814.39,0.00012999,2]
[327018339,1715716262191,-814.39,0.00012999,2]
[327018340,1715716262202,-814.39,0.00012999,2]
[327018341,1715716262211,-814.39,0.00012999,2]
[327018342,1715716262220,-814.39,0.00012999,2]
[327018343,1715716262231,-814.39,0.00012999,2]
[327018344,1715716262240,-814.39,0.00012999,2]
[327018345,1715716262249,-814.39,0.00012999,2]
[327018346,1715716262259,-814.39,0.00012999,2]
[327018347,1715716262269,-814.55202947,0.00012999,2]
[327018348,1715716262279,-500.0,0.00012999,2]
[327018349,1715716262288,-500.0,0.00012999,2]
[327018350,1715716262299,-404.75648262,0.00012999,2]
[327018351,1715716262309,-1398.97,0.00012999,2]
[327018352,1715716262319,-1398.97,0.00012999,2]
[327018353,1715716262328,-1398.97,0.00012999,2]
[327018354,1715716262337,-1398.97,0.00012999,2]
[327018355,1715716262346,-1398.97,0.00012999,2]
[327018356,1715716262355,-1398.97,0.00012999,2]
[327018357,1715716262364,-1398.97,0.00012999,2]
[327018358,1715716262374,-1398.97,0.00012999,2]
[327018359,1715716262383,-1398.97,0.00012999,2]
[327018360,1715716262392,-500.0,0.00012999,2]
[327018361,1715716262401,-1398.97,0.00012999,2]
[327018362,1715716262411,-500.0,0.00012999,2]
[327018363,1715716262423,-1398.97,0.00012999,2]
[327018364,1715716262432,-161.27323673,0.00012999,2]
[327018365,1715716262441,-1398.97,0.00012999,2]
[327018366,1715716262450,-1398.97,0.00012999,2]
[327018367,1715716262459,-1398.97,0.00012999,2]
[327018368,1715716262469,-1398.97,0.00012999,2]
[327018369,1715716262478,-1398.97,0.00012999,2]
[327018370,1715716262487,-1398.97,0.00012999,2]
[327018371,1715716262496,-1398.97,0.00012999,2]
[327018372,1715716262505,-1398.99935608,0.00012999,2]
[327018373,1715716262514,-500.0,0.00012999,2]
[327018374,1715716262524,-500.0,0.00012999,2]
[327018375,1715716262532,-295.10514359,0.00012999,2]
[327018376,1715716262542,-500.0,0.00012999,2]
[327018377,1715716262551,-500.0,0.00012999,2]
[327018378,1715716262560,-500.0,0.00012999,2]
[327018379,1715716262570,-500.0,0.00012999,2]
[327018380,1715716262579,-500.0,0.00012999,2]
[327018381,1715716262588,-500.0,0.00012999,2]
[327018382,1715716262598,-500.0,0.00012999,2]
[327018383,1715716262607,-500.0,0.00012999,2]
[327018384,1715716262617,-500.0,0.00012999,2]
[327018385,1715716262626,-500.0,0.00012999,2]
[327018386,1715716262635,-500.0,0.00012999,2]
[327018387,1715716262644,-500.0,0.00012999,2]
[327018388,1715716262654,-500.0,0.00012999,2]
[327018389,1715716262663,-195.2808016,0.00012999,2]
[327018390,1715716262675,-421666.24977393,0.00013,2]
[327018391,1715716262684,-511775.86744379,0.00013,2]
[327018392,1715716262695,-482912.61787747,0.00013,2]
[327018393,1715716262704,-163351.55558723,0.00013,2]
[327018394,1715716263152,-290.646,0.00013,2]
[327018395,1715716263183,-1625.47,0.00012999,2]
[327018396,1715716263192,-1479606.7153809,0.00013,2]
[327018397,1715716263201,-256154.69108922,0.00013,2]
[327018398,1715716263211,-2198891.08821545,0.00013,2]
[327018399,1715716263219,-790985.767976,0.00013,2]
[327018400,1715716263537,-176.71144028,0.000129,2]
[327018401,1715716263546,-1625.47,0.00012999,2]
[327018402,1715716263556,-1282.56855972,0.00012999,2]
[327018403,1715716263614,-342.90144028,0.00012999,2]
[327018404,1715716263623,-1625.47,0.00012999,2]
[327018405,1715716263633,-1625.47,0.00012999,2]
[327018406,1715716263641,-1625.47,0.00012999,2]
[327018407,1715716263651,-1625.47,0.00012999,2]
[327018408,1715716263660,-1625.47,0.00012999,2]
[327018409,1715716263671,-454181.11856342,0.00013,2]
[327018410,1715716264007,-176.71144028,0.000129,2]
[327018411,1715716264020,-621.54581092,0.00012999,2]
[327018412,1715716264037,-538.95999007,0.00012999,2]
[327018413,1715716264082,-4.5856747,0.00012999,2]
[327018414,1715716264682,173.31130324,0.000109,2]
[327018415,1715716268080,300.0,0.000109,2]
[327018416,1715716272963,299.82252952,0.000109,2]
[327018417,1715716303302,186.20929058,0.000109,2]
[327018418,1715716303325,223.29089747,0.000109,2]
[327018419,1715716306527,3776.70910253,0.000109,2]
[327018420,1715716306552,3737.97031132,0.000109,2]
[327018421,1715716321247,262.02968868,0.000109,2]
[327018422,1715716321269,147.47049937,0.000109,2]
[327018423,1715716322242,361.72900621,0.000109,2]
[327018424,1715716323405,3490.80049442,0.000109,2]
[327018425,1715716323426,4000.0,0.000109,2]
[327018426,1715716323447,4000.0,0.000109,2]
[327018427,1715716323468,4000.0,0.000109,2]
[327018428,1715716323489,4000.0,0.000109,2]
[327018429,1715716323510,4000.0,0.000109,2]
[327018430,1715716323531,4000.0,0.000109,2]
[327018431,1715716323552,4000.0,0.000109,2]
[327018432,1715716323574,4000.0,0.000109,2]
[327018433,1715716323594,4000.0,0.000109,2]
[327018434,1715716323616,4000.0,0.000109,2]
[327018435,1715716323638,4000.0,0.000109,2]
[327018436,1715716323659,4000.0,0.000109,2]
[327018437,1715716323679,4000.0,0.000109,2]
[327018438,1715716323699,4000.0,0.000109,2]
[327018439,1715716323724,4000.0,0.000109,2]
[327018440,1715716323749,4000.0,0.000109,2]
[327018441,1715716323768,4000.0,0.000109,2]
[327018450,1715717317504,192.79,8.467e-05,2]
[327018451,1715717362005,437148.17051853,8.467e-05,2]
[327018460,1715717431801,-155.0,0.00010228,2]
[327018461,1715717431812,-260.45583852,0.00010228,2]
[327018462,1715717431822,-83.84396558,0.00010229,2]
[327018463,1715717431915,-493.79009423,0.00010229,2]
[327018464,1715717431925,-802.0,0.00010329,2]
[327018465,1715717431934,-494.93485577,0.00010332,2]
[327018466,1715717431970,-324.11077623,0.00010332,2]
[327018467,1715717431979,-277.30325693,0.000107,2]
[327018468,1715717431991,-104.23648763,0.000107,2]
[327018469,1715717432000,-1265.97856805,0.000108,2]
[327018470,1715717432010,-150.0,0.00010899,2]
[327018471,1715717432019,-150.0,0.00010899,2]
[327018472,1715717432028,-359.77315122,0.000109,2]
[327018474,1715717432037,-362.42260068,0.000109,2]
[327018476,1715717432046,-200.0,0.00011,2]
[327018478,1715717432055,-181.85,0.00011,2]
[327018480,1715717432064,-1000.0,0.00011062,2]
[327018482,1715717432073,-250.0,0.00011079,2]
[327018483,1715717432082,-250.0,0.00011115,2]
[327018485,1715717432091,-1731.88765671,0.0001116,2]
[327018517,1715717432465,-76.31734497,0.0001116,2]
[327018527,1715717437838,-155.0,0.00010227,2]
[327018528,1715717437847,-238.26039802,0.0001116,2]
[327018529,1715717437948,-1822.40413445,0.0001116,2]
[327018530,1715717438005,-429.29344456,0.0001116,2]
[327018531,1715717438062,-977.39702129,0.0001116,2]
[327018532,1715717438072,-106.78255805,0.00011196,2]
[327018533,1715717438120,-75.73744195,0.00011196,2]
[327018534,1715717438130,-223.21585805,0.00011247,2]
[327018535,1715717438313,-576.78414195,0.00011247,2]
[327018536,1715717438323,-834.31,0.00011327,2]
[327018537,1715717438333,-473.71033469,0.00011448,2]
[327018538,1715717438345,-117.90966531,0.00011448,2]
[327018539,1715717438359,-538.84,0.00011565,2]
[327018540,1715717438369,-187.33,0.00011628,2]
[327018541,1715717438378,-1012.48344219,0.00011661,2]
[327018542,1715717438391,-186.59655781,0.00011661,2]
[327018543,1715717438401,-165.13,0.00011831,2]
[327018544,1715717438410,-200.0,0.00011903,2]
[327018545,1715717438420,-168.17,0.00012019,2]
[327018546,1715717438431,-171.87,0.00012261,2]
[327018547,1715717438441,-829.86,0.00012341,2]
[327018548,1715717438451,-312.71181864,0.00012348,2]
[327018549,1715717438461,-302.75365927,0.00012348,7]
[327018550,1715717438471,-10932.27936531,0.000124,2]
[327018551,1715717438481,-398.72,0.00012478,2]
[327018552,1715717438490,-351.52,0.00012478,2]
[327018553,1715717438500,-351.52,0.00012478,2]
[327018554,1715717438509,-800.0,0.00012653,2]
[327018555,1715717438518,-1563.06983317,0.00012784,2]
[327018556,1715717438528,-150.0,0.000128,2]
[327018557,1715717438537,-5905.7577,0.000128,2]
[327018558,1715717438546,-799.46520514,0.000128,2]
[327018559,1715717438556,-1000.0,0.000128,2]
[327018560,1715717438565,-799.46520514,0.0001285,2]
[327018561,1715717438574,-528.24751457,0.00012876,2]
[327018562,1715717438584,-500.0,0.00012876,2]
[327018563,1715717438593,-500.0,0.00012876,2]
[327018564,1715717438602,-500.0,0.00012876,2]
[327018565,1715717438612,-500.0,0.00012876,2]
[327018566,1715717438621,-500.0,0.00012876,2]
[327018567,1715717438631,-531.51469284,0.00012876,2]
[327018568,1715717438640,-500.0,0.00012876,2]
[327018569,1715717438651,-500.0,0.00012876,2]
[327018570,1715717438660,-500.0,0.00012876,2]
[327018571,1715717438669,-500.0,0.00012876,2]
[327018572,1715717438678,-631.51,0.00012876,2]
[327018573,1715717438688,-521.42,0.00012876,2]
[327018574,1715717438699,-500.0,0.00012876,2]
[327018575,1715717438707,-499.42500445,0.00012876,2]
[327018576,1715717438719,-0.57499555,0.00012876,2]
[327018577,1715717438728,-500.0,0.00012876,2]
[327018578,1715717438738,-500.0,0.00012876,2]
[327018579,1715717438747,-500.0,0.00012876,2]
[327018580,1715717438757,-500.0,0.00012876,2]
[327018581,1715717438767,-500.0,0.00012876,2]
[327018582,1715717438777,-500.0,0.00012876,2]
[327018583,1715717438786,-500.0,0.00012876,2]
[327018584,1715717438796,-155.0,0.00012876,2]
[327018585,1715717438805,-213.55595717,0.00012876,2]
[327018586,1715717438815,-200.0,0.00012885,2]
[327018587,1715717438825,-500.0,0.00012896,2]
[327018588,1715717438834,-3087.54678534,0.00012898,2]
[327018589,1715717438844,-7845.0,0.00012898,2]
[327018590,1715717438854,-155.09014586,0.00012898,2]
[327018591,1715717438863,-155.24241743,0.00012898,2]
[327018592,1715717438873,-882.82313316,0.00012898,2]
[327018593,1715717438882,-500.0,0.00012899,2]
[327018594,1715717438892,-500.0,0.00012899,2]
[327018595,1715717438903,-500.0,0.00012899,2]
[327018596,1715717438913,-404.54978707,0.00012899,2]
[327018597,1715717438922,-521.42,0.00012899,2]
[327018598,1715717438931,-521.42,0.00012899,2]
[327018599,1715717438940,-521.42,0.00012899,2]
[327018600,1715717438951,-500.0,0.00012899,2]
[327018601,1715717438960,-500.0,0.00012899,2]
[327018602,1715717438969,-500.0,0.00012899,2]
[327018603,1715717438979,-500.0,0.00012899,2]
[327018604,1715717438988,-500.0,0.00012899,2]
[327018605,1715717438998,-500.0,0.00012899,2]
[327018606,1715717439008,-500.0,0.00012899,2]
[327018607,1715717439017,-528.76173809,0.00012899,2]
[327018608,1715717439026,-557.23881731,0.00012899,2]
[327018609,1715717439036,-500.0,0.00012899,2]
[327018610,1715717439045,-500.0,0.00012899,2]
[327018611,1715717439054,-500.0,0.00012899,2]
[327018612,1715717439064,-500.0,0.00012899,2]
[327018613,1715717439073,-500.0,0.00012899,2]
[327018614,1715717439082,-500.0,0.00012899,2]
[327018615,1715717439091,-33220.58367276,0.000129,2]
[327018616,1715717439103,-1486.4935766,0.000129,2]
[327018664,1715717442989,-500.0,0.00012876,2]
[327018665,1715717442998,-500.0,0.00012899,2]
[327018666,1715717443007,-500.0,0.00012899,2]
[327018667,1715717443016,-500.0,0.00012899,2]
[327018668,1715717443026,-8885.30238,0.000129,2]
[327018669,1715717443052,-1169.22354338,0.000129,2]
[327018670,1715717443063,-226261.25391408,0.000129,2]
[327018671,1715717443163,-302.09356369,0.00010959,2]
[327018673,1715717446028,-29.07643631,0.00010959,2]
[327018674,1715717446038,-260.40416804,0.00012899,2]
[327018675,1715717446048,-29627.97825966,0.000129,2]
[327018676,1715717446060,-19840.83385625,0.000129,2]
[327018677,1715717446076,-6536.765211,0.000129,2]
[327018678,1715717446088,-2734.71085841,0.000129,2]
[327018679,1715717446099,-909.18055416,0.000129,2]
[327018680,1715717446133,60978.0355574,8.467e-05,2]
[327018681,1715717446147,-270.462826,0.000129,2]
[327018682,1715717446159,-1748.9835148,0.000129,2]
[327018683,1715717446177,-997.4085,0.000129,2]
[327018684,1715717461423,231.81452124,8.467e-05,2]
[327018708,1715718632058,-685.85275568,0.00010263,2]
[327018709,1715718632070,-158.03691831,0.00010264,2]
[327018710,1715718632079,-150.0,0.00010265,2]
[327018711,1715718632089,-162.50319315,0.00010265,2]
[327018712,1715718632098,-155.0,0.00010265,2]
[327018713,1715718632108,-8364.82190366,0.00010265,2]
[327018714,1715718632118,-155.0,0.00010266,2]
[327018715,1715718632128,-606.86994619,0.00010266,2]
[327018716,1715718632140,-4664.22435997,0.00010266,2]
[327018717,1715718632149,-1247.6171514,0.00010267,2]
[327018718,1715718632159,-2184.98248906,0.00010268,2]
[327018719,1715718632169,-4124.50099953,0.0001028,2]
[327018720,1715718632182,-1674.9,0.0001028,2]
[327018721,1715718632194,-2702.77300047,0.0001028,2]
[327018722,1715718632205,-539.72354301,0.00010281,2]
[327018723,1715718632214,-1016.4363,0.00010283,2]
[327018724,1715718632224,-200.0,0.00010364,2]
[327018725,1715718632233,-540.33,0.00010411,2]
[327018726,1715718632243,-2332.2,0.00010422,2]
[327018727,1715718632253,-250.0,0.00010582,2]
[327018728,1715718632262,-216.60813439,0.00010666,2]
[327018729,1715718632274,-563.16186561,0.00010666,2]
[327018730,1715718632283,-520.0,0.00010669,2]
[327018731,1715718632292,-2646.83813439,0.00010675,2]
[327018732,1715718632373,-1183.56621942,0.00010675,2]
[327018753,1715718638134,-20069.59564619,0.00010675,2]
[327018754,1715718638143,-331.19,0.00010684,2]
[327018755,1715718638152,-331.19,0.00010713,2]
[327018756,1715718638162,-116.99591485,0.00010732,2]
[327018757,1715718638173,-133.00408515,0.00010732,2]
[327018758,1715718638182,-331.19,0.00010742,2]
[327018759,1715718638192,-3516.36,0.00010753,2]
[327018760,1715718638201,-6060.16,0.00010753,2]
[327018761,1715718638210,-331.19,0.00010772,2]
[327018762,1715718638221,-331.19,0.00010801,2]
[327018763,1715718638230,-331.19,0.0001083,2]
[327018764,1715718638238,-331.19,0.0001086,2]
[327018765,1715718638247,-331.19,0.00010889,2]
[327018766,1715718638256,-480.0,0.000109,2]
[327018767,1715718638265,-331.19,0.00010918,2]
[327018768,1715718638274,-331.19,0.00010947,2]
[327018769,1715718638283,-331.19,0.00010977,2]
[327018770,1715718638292,-200.0,0.00011,2]
[327018771,1715718638300,-331.19,0.00011006,2]
[327018772,1715718638309,-331.19,0.00011035,2]
[327018773,1715718638318,-331.19,0.00011065,2]
[327018774,1715718638327,-331.19,0.00011094,2]
[327018775,1715718638336,-331.19,0.00011123,2]
[327018776,1715718638345,-331.19,0.00011152,2]
[327018777,1715718638354,-331.19,0.00011182,2]
[327018778,1715718638363,-331.19,0.00011211,2]
[327018779,1715718638371,-542.93,0.00011227,2]
[327018780,1715718638381,-542.93,0.0001123,2]
[327018781,1715718638390,-1674.9,0.0001123,4]
[327018782,1715718638399,-542.93,0.00011233,2]
[327018783,1715718638408,-542.93,0.00011236,2]
[327018784,1715718638416,-542.93,0.00011239,2]
[327018785,1715718638425,-331.19,0.0001124,2]
[327018786,1715718638436,-542.93,0.00011242,2]
[327018787,1715718638445,-542.93,0.00011245,2]
[327018788,1715718638454,-542.93,0.00011248,2]
[327018789,1715718638464,-542.93,0.00011251,2]
[327018790,1715718638473,-542.93,0.00011254,2]
[327018791,1715718638482,-542.93,0.00011257,2]
[327018792,1715718638490,-542.93,0.0001126,2]
[327018793,1715718638500,-542.93,0.00011263,2]
[327018794,1715718638508,-480.69520816,0.00011266,2]
[327018795,1715718638520,-62.23479184,0.00011266,2]
[327018796,1715718638529,-542.93,0.00011269,2]
[327018797,1715718638538,-542.93,0.00011272,2]
[327018798,1715718638548,-542.93,0.00011275,2]
[327018799,1715718638556,-542.93,0.00011278,2]
[327018800,1715718638565,-542.93,0.00011281,2]
[327018801,1715718638574,-542.93,0.00011284,2]
[327018802,1715718638583,-210.0,0.00011292,2]
[327018803,1715718638592,-177.04,0.0001166,2]
[327018804,1715718638601,-400.0,0.000119,4]
[327018805,1715718638610,-18697.0,0.00012,2]
[327018806,1715718638618,-900.0,0.00012,4]
[327018807,1715718638627,-520.0,0.00012003,2]
[327018808,1715718638636,-165.13,0.00012008,2]
[327018809,1715718638645,-1400.0,0.000121,4]
[327018810,1715718638654,-1900.0,0.000122,4]
[327018811,1715718638663,-480.0,0.00012263,2]
[327018812,1715718638673,-2400.0,0.000123,4]
[327018813,1715718638682,-400.0,0.000124,4]
[327018814,1715718638691,-3633.88708264,0.000124,2]
[327018815,1715718638711,-278.03104882,0.000124,2]
[327018825,1715718640274,-5603.27420873,0.000124,2]
[327018826,1715718640287,-530.421667,0.000124,2]
[327018827,1715718640350,-886.66535812,0.000124,2]
[327018828,1715718640361,-240.0,0.00012421,2]
[327018829,1715718640371,-400.0,0.000125,4]
[327018830,1715718640381,-400.0,0.000126,4]
[327018831,1715718640391,-400.0,0.000127,4]
[327018832,1715718640402,-1000.0,0.000128,2]
[327018833,1715718640412,-79.49018628,0.000128,2]
[327018834,1715718640424,-573.37954002,0.000128,2]
[327018835,1715718640437,-6364.39687151,0.000128,2]
[327018836,1715718640449,-1137.3591039,0.000128,2]
[327018837,1715718640565,-12099.00013368,0.000128,2]
[327018900,1715718643086,-658.35,0.000128,2]